[Event "44th Chess Olympiad Open 2022"]
[Site "Chennai"]
[Date "2022.08.05"]
[Round "7.28"]
[White "Nikolovski, Nikola"]
[Black "Urkedal, Frode Olav Olsen"]
[Result "1/2-1/2"]
[ECO "A02"]
[WhiteElo "2366"]
[BlackElo "2555"]
[Annotator "TA"]
[PlyCount "109"]
[EventDate "2022.07.29"]
[EventType "team-tourn"]
[EventCountry "IND"]
[SourceTitle "playchess.com"]
[Source "ChessBase"]
[SourceQuality "1"]
[WhiteTeam "Macedonia"]
[BlackTeam "Norway"]
[WhiteTeamCountry "MKD"]
[BlackTeamCountry "NOR"]
[TimeControl "40/5400+30:1800+30"]

{[%evp 14,109,-17,-22,-22,-27,-28,-37,-16,-26,-14,-12,-18,-34,-12,-20,-6,-4,0,-17,-9,-18,-4,-7,-8,-16,-14,-18,-5,-38,-36,-39,0,-11,-8,0,10,10,10,10,19,8,27,-12,10,-9,-4,-4,-4,-37,-4,-4,-4,-4,-4,-4,-4,-4,0,0,0,0,0,0,0,0,0,0,0,0,0,0,0,0,0,0,0,0,0,0,0,0,0,0,0,0,0,0,0,0,0,0,0,0,0,0,0,-14]} 1. f4 {[%emt 0:00:22]} Nf6 {[%emt 0:00:06]} 2. Nf3 {[%emt 0:01:28]} g6 {[%emt 0:00:08]} 3. b3 {[%emt 0:06:26]} Bg7 {[%emt 0:00:16]} 4. Bb2 {[%emt 0:00:07]} O-O {[%emt 0:00:51]} 5. e3 {[%emt 0:03:00]} c5 {[%emt 0:03:19]} 6. Be2 {[%emt 0:04:03]} b6 {[%emt 0:04:47]} 7. O-O {[%emt 0:00:00]} Bb7 {[%emt 0:00:12]} 8. Qe1 {[%emt 0:00:26]} e6 {[%emt 0:11:08] A02: Bird's Opening.} 9. d3 {[%emt 0:09:00]} d5 {[%emt 0:08:05]} 10. Nbd2 {[%emt 0:08:37]} Nc6 {[%emt 0:09:12] Black is slightly better.} 11. Ne5 {[%emt 0:10:28] [#]} Rc8 $146 {[%emt 0:00:00]} ({Predecessor:} 11... d4 12. Nxc6 Bxc6 13. e4 Nd7 14. Qg3 f5 15. Bf3 e5 16. exf5 Bxf3 17. Nxf3 Rxf5 18. fxe5 Nxe5 19. Nxe5 Bxe5 20. Qg4 Rxf1+ 21. Rxf1 Qd6 {½-½ (21) Bryntze,S (2193)-Schneider,S (2312) Stockholm 2013}) 12. Nxc6 {[%emt 0:06:09]} Bxc6 {[%emt 0:02:32]} 13. Kh1 {[%emt 0:01:09]} Re8 {[%emt 0:05:58]} 14. Be5 {[%emt 0:06:00]} Bf8 {[%emt 0:03:57]} 15. Bb2 {[%emt 0:02:30]} Bg7 {[%emt 0:01:48]} 16. Be5 {[%emt 0:08:29]} Qe7 {[%emt 0:04:33]} 17. a4 {[%emt 0:07:33]} Red8 {[%emt 0:01:17]} 18. Rd1 {[%emt 0:06:16]} (18. Qh4 {seems wilder.} Rd7 19. Kg1 Ne8 20. Qxe7 Rxe7 21. e4) 18... Ne8 {[%emt 0:11:20]} 19. Bxg7 {[%emt 0:00:00]} Nxg7 {[%emt 0:00:07]} 20. e4 {[%emt 0:02:41]} Rd7 {[%emt 0:01:23]} 21. e5 {[%emt 0:00:06]} Nf5 {[%emt 0:02:20]} 22. Bg4 {[%emt 0:02:26]} d4 {[%emt 0:03:19]} 23. Bxf5 {[%emt 0:02:01]} exf5 {[%emt 0:00:55]} 24. Nc4 {[%emt 0:00:06]} Qe6 {[%emt 0:01:18]} 25. Qh4 {[%emt 0:00:45]} Kg7 {[%emt 0:00:40]} 26. h3 {[%emt 0:00:08]} Bd5 {[%emt 0:01:07]} 27. Kh2 {[%emt 0:01:35]} h5 {[%emt 0:13:57]} 28. Nd2 {[%emt 0:05:13]} a6 {[%emt 0:00:00]} 29. Nf3 {[%emt 0:00:36]} Bxf3 {[%emt 0:00:00]} 30. Rxf3 {[%emt 0:00:06]} Qe7 {[%emt 0:00:00]} 31. Qe1 {[%emt 0:03:52]} (31. Kg3 {keeps more tension.} Rh8 32. Rff1 Qe6 33. Kh2) 31... Re8 {[%emt 0:00:39]} (31... f6 $5 {[%cal Rf6e5]}) 32. Rf2 {[%emt 0:03:12] The position is equal.} Rc7 {[%emt 0:03:40][%cal Bd7c7,Bc7c6,Bc6e6][%mdl 32]} 33. Re2 {[%emt 0:00:00]} Rc6 {[%emt 0:00:08]} 34. Qf2 {[%emt 0:00:00]} Re6 {[%emt 0:00:39]} 35. Qf3 {[%emt 0:00:00]} h4 {[%emt 0:00:21]} 36. Rde1 {[%emt 0:00:20]} Kh6 {[%emt 0:01:55]} 37. Qf2 {[%emt 0:00:11]} Kg7 {[%emt 0:00:36]} 38. Qf3 {[%emt 0:00:06]} Rh8 {[%emt 0:01:31]} 39. Kg1 {[%emt 0:00:38]} Qd7 {[%emt 0:01:38]} 40. Kh2 {[%emt 0:02:21]} Qc7 {[%emt 0:00:24]} 41. Kg1 {[%emt 0:01:54]} Rc8 {[%emt 0:33:46]} 42. Qf2 {[%emt 0:29:34]} Qe7 {[%emt 0:02:01]} 43. Kh2 {[%emt 0:01:27]} Qd8 {[%emt 0:00:00]} 44. Qf3 {[%emt 0:00:00]} Rc7 {[%emt 0:03:45][%cal Bc8c7,Bc7e7,Be7e8,Be8h8][%mdl 32]} 45. Kh1 {[%emt 0:00:00]} Rce7 {[%emt 0:00:00]} 46. Qf2 {[%emt 0:00:00]} Re8 {[%emt 0:00:00]} 47. Qf3 {[%emt 0:00:00]} Qa8 {[%emt 0:00:00]} 48. Qf2 Rh8 {[%emt 0:00:00]} 49. Rb1 {[%emt 0:00:00]} Qd5 {[%emt 0:00:00]} 50. Rbe1 {[%emt 0:00:00]} a5 {[%emt 0:06:31]} 51. Kh2 {[%emt 0:00:00]} Kf8 {[%emt 0:01:53]} 52. Kh1 {[%emt 0:00:57]} Kg7 {[%emt 0:00:00]} 53. Kh2 {[%emt 0:00:00]} Kf8 {[%emt 0:00:00]} 54. Kh1 {[%emt 0:00:00]} Kg7 {[%emt 0:00:00]} 55. Kh2 {[%emt 0:00:00] Weighted Error Value: White=0.04 (flawless) /Black=0.05 (flawless)} 1/2-1/2

[Event "44th Chess Olympiad Open 2022"]
[Site "Chennai"]
[Date "2022.08.05"]
[Round "7.29"]
[White "Tristan, Leonardo"]
[Black "Apol, Luitjen Akselsson"]
[Result "1-0"]
[ECO "E92"]
[WhiteElo "2558"]
[BlackElo "2289"]
[Annotator "TA"]
[PlyCount "55"]
[EventDate "2022.07.29"]
[EventType "team-tourn"]
[EventCountry "IND"]
[SourceTitle "playchess.com"]
[Source "ChessBase"]
[SourceQuality "1"]
[WhiteTeam "Argentina"]
[BlackTeam "Faroe Islands"]
[WhiteTeamCountry "ARG"]
[BlackTeamCountry "FAI"]
[TimeControl "40/5400+30:1800+30"]

{[%evp 15,55,43,38,42,59,62,108,87,160,121,175,201,181,180,181,179,179,179,179,174,175,175,187,104,211,183,231,221,196,215,190,210,367,365,361,350,319,334,1218,1181,29998,29999]} 1. d4 {[%emt 0:03:45]} Nf6 {[%emt 0:00:19]} 2. c4 {[%emt 0:00:10]} g6 {[%emt 0:00:22]} 3. Nc3 {[%emt 0:00:10]} Bg7 {[%emt 0:00:30]} 4. e4 {[%emt 0:00:06]} d6 {[%emt 0:00:26]} 5. Nf3 {[%emt 0:00:09][%cal Bg1f3,Bf3d2,Bd2f1,Bf1e3][%mdl 32]} O-O {[%emt 0:00:28]} 6. Be2 {[%emt 0:00:09]} e5 {[%emt 0:01:50]} 7. d5 {[%emt 0:00:11]} Na6 {[%emt 0:00:57]} 8. Nd2 {[%emt 0:00:41]} Ne8 {[%emt 0:10:18]} 9. h4 {[%emt 0:06:25] E92: King's Indian: Classical: 6 Be2 e5: 7 dxe5, 7 Be3 and Petrosian System without 7...Nbd7.} h5 {[%emt 0:12:41]} 10. Nf1 {[%emt 0:12:25] [#]} c5 $146 {[%emt 0:16:27]} (10... Nc5 $14 {is more appropriate.}) ({Predecessor:} 10... c6 11. Ne3 cxd5 12. cxd5 Qb6 13. Nc4 Qd8 14. Be3 Bd7 15. a4 f5 16. f3 Bf6 {1-0 (35) Henrich,T-Wohlfart,P Hessen 1992}) 11. Bg5 {[%emt 0:09:59] White is better.} Nf6 {[%emt 0:06:02]} (11... Qd7 $142) 12. Qd2 {[%emt 0:11:54]} Nc7 {[%emt 0:05:55]} (12... Qe8 $16) 13. Ne3 $18 {[%emt 0:07:22]} Qe8 {[%emt 0:10:10]} 14. Bxf6 {[%emt 0:00:40]} Bxf6 {[%emt 0:00:01]} 15. g4 {[%emt 0:00:09]} hxg4 {[%emt 0:01:48]} 16. Bxg4 {[%emt 0:03:11]} Kg7 {[%emt 0:07:06]} 17. O-O-O {[%emt 0:04:19] aiming for Bxc8.} Rh8 {[%emt 0:01:16]} 18. Bxc8 {[%emt 0:08:30]} Qxc8 {[%emt 0:03:00]} 19. Rdg1 {[%emt 0:00:15]} ({White should try} 19. h5 $1 $18) 19... Rh5 {[%emt 0:08:24]} (19... Qd7 $16 {was called for.}) 20. Ne2 {[%emt 0:04:29] And now Ng3 would win.} Kf8 {[%emt 0:01:55]} (20... Qd7 $142 21. Ng3 Rhh8) 21. Ng3 {[%emt 0:00:14]} Rh8 {[%emt 0:04:23]} ({Not} 21... Rxh4 22. Rxh4 Bxh4 23. Nef5 $1 Bxg3 24. Qh6+ Ke8 25. Rxg3 $16 (25. Nxd6+ Kd7 $19)) 22. h5 {[%emt 0:00:12] Hoping for hxg6.} Ke7 {[%emt 0:00:50]} 23. Qe2 {[%emt 0:08:17]} Qd7 $2 {[%emt 0:01:10] [#]} (23... a6 24. Qf3 Qf8) 24. hxg6 $1 {[%emt 0:01:20]} fxg6 {[%emt 0:00:01] [#]} 25. Ngf5+ $1 {[%emt 0:01:25][%mdl 512]} gxf5 {[%emt 0:00:05]} 26. Nxf5+ {[%emt 0:00:06]} Kf7 $2 {[%emt 0:00:54]} (26... Kd8) 27. Qg4 {[%emt 0:00:12] Threatening mate with Qg6+.} Rxh1 {[%emt 0:03:50]} 28. Qg6+ {[%emt 0:00:11] Weighted Error Value: White=0.10 (very precise) /Black=0.73} ({Weaker is} 28. Rxh1 Rh8 29. Rxh8 Bxh8 $16) 1-0

[Event "44th Chess Olympiad Open 2022"]
[Site "Chennai"]
[Date "2022.08.05"]
[Round "7.29"]
[White "Perez Ponsa, Federico"]
[Black "Nielsen, Hogni Egilstoft"]
[Result "1/2-1/2"]
[ECO "E38"]
[WhiteElo "2554"]
[BlackElo "2414"]
[Annotator "TA"]
[PlyCount "120"]
[EventDate "2022.07.29"]
[EventType "team-tourn"]
[EventCountry "IND"]
[SourceTitle "playchess.com"]
[Source "ChessBase"]
[SourceQuality "1"]
[WhiteTeam "Argentina"]
[BlackTeam "Faroe Islands"]
[WhiteTeamCountry "ARG"]
[BlackTeamCountry "FAI"]
[TimeControl "40/5400+30:1800+30"]

{[%evp 14,120,48,44,58,49,34,26,41,37,50,38,50,39,59,36,45,5,15,13,20,0,12,8,31,20,32,0,13,10,38,30,141,20,21,18,32,12,17,17,36,29,45,0,20,0,66,28,31,20,45,0,0,0,0,0,0,0,0,0,0,-10,93,-2,82,85,85,81,137,137,137,41,45,43,43,43,43,40,53,8,24,24,24,0,0,0,0,0,0,0,0,0,0,0,0,0,0,0,0,0,0,0,0,0,0,0,0,0,0]} 1. d4 {[%emt 0:00:04]} Nf6 {[%emt 0:00:20]} 2. c4 {[%emt 0:00:15]} e6 {[%emt 0:00:44]} 3. Nc3 {[%emt 0:00:18]} Bb4 {[%emt 0:00:54]} 4. Qc2 {[%emt 0:00:20]} c5 {[%emt 0:02:48]} 5. dxc5 {[%emt 0:01:35]} Bxc5 {[%emt 0:01:21]} 6. Nf3 {[%emt 0:00:29]} Qb6 {[%emt 0:02:56]} 7. e3 {[%emt 0:06:27]} Qc7 {[%emt 0:01:19]} 8. a3 {[%emt 0:06:11][%cal Og2g4]} b6 {[%emt 0:10:34] E38: Nimzo-Indian: Classical: 4...c5.} 9. Be2 {[%emt 0:04:01][%cal Og2g4]} Bb7 {[%emt 0:04:34]} 10. b4 {[%emt 0:04:48]} Be7 {[%emt 0:00:00] White has an edge.} 11. Bb2 {[%emt 0:00:15]} a6 {[%emt 0:00:00]} 12. O-O {[%emt 0:05:27]} d6 {[%emt 0:02:19]} 13. Rac1 {[%emt 0:07:04]} Nbd7 {[%emt 0:01:21][%cal Bb8d7,Bd7f8,Bf8g6][%mdl 32]} 14. Rfd1 {[%emt 0:05:29]} O-O {[%emt 0:04:31]} 15. h3 {[%emt 0:02:51]} Rac8 {[%emt 0:01:41]} 16. e4 {[%emt 0:01:45]} Qb8 {[%emt 0:16:50]} 17. Bd3 {[%emt 0:04:44]} Rfd8 {[%emt 0:08:54]} 18. Qe2 {[%emt 0:01:47] [#]} Nf8 $146 {[%emt 0:03:44]} ({Predecessor:} 18... Ne5 19. Nxe5 dxe5 20. Na4 Bc6 21. b5 axb5 22. cxb5 Ba8 23. Qe3 Rxc1 24. Rxc1 h6 25. Qxb6 Qxb6 26. Nxb6 Bxe4 27. Bxe4 Nxe4 {0-1 (44) Braeuning,R (2348)-Jablonski,N (2315) Paris 2010}) 19. Qe3 {[%emt 0:02:30]} N6d7 {[%emt 0:04:38]} 20. Ne2 {[%emt 0:06:22][%cal Bc3e2,Be2g3,Bg3h5][%mdl 32]} Ng6 {[%emt 0:06:27]} 21. Ng3 {[%emt 0:04:04]} (21. Qd4 $2 Bf6 22. Qe3 (22. e5 $2 Ndxe5 23. Nxe5 Bxe5 $19) 22... Bxb2 $19) 21... Qc7 {[%emt 0:05:47]} 22. Nh5 {[%emt 0:04:32]} (22. Qd4 $2 Bf6 23. Qe3 Bxb2 $19) 22... Nde5 {[%emt 0:02:58]} (22... Nge5 $11) 23. Be2 {[%emt 0:04:44]} (23. Bd4 $1 $16) 23... Nxf3+ $11 {[%emt 0:09:51]} 24. Qxf3 {[%emt 0:07:21]} ({Of course not} 24. gxf3 e5 $15) 24... e5 {[%emt 0:01:42]} 25. Qg4 {[%emt 0:01:07]} Qc6 {[%emt 0:02:15]} 26. Bd3 {[%emt 0:10:15] aiming for f4.} Bf8 {[%emt 0:00:41]} 27. Rf1 {[%emt 0:01:16]} Qd7 {[%emt 0:03:23]} 28. Rfd1 {[%emt 0:05:10]} Qe6 {[%emt 0:00:55]} 29. Qg3 {[%emt 0:00:49]} Rb8 {[%emt 0:00:56]} (29... b5 $11) 30. Qe3 {[%emt 0:00:45] White is more active.} Be7 {[%emt 0:00:35]} 31. Be2 {[%emt 0:00:59] Hoping for Bg4.} Qc8 {[%emt 0:00:24]} 32. Qxb6 {[%emt 0:01:50]} Bxe4 {[%emt 0:00:05]} 33. Qe3 {[%emt 0:00:03]} Qb7 {[%emt 0:00:33]} 34. Bf1 {[%emt 0:00:52]} h6 {[%emt 0:00:08]} 35. Re1 {[%emt 0:00:53]} Bc6 {[%emt 0:00:10]} 36. Rcd1 {[%emt 0:00:15]} Bg5 {[%emt 0:01:22]} 37. Qg3 {[%emt 0:00:18]} Qb6 {[%emt 0:00:47] [#]} (37... Rbc8 $11 {keeps the balance.}) 38. Bd3 {[%emt 0:01:02]} (38. Rxd6 $1 $16 Rxd6 39. c5) 38... Qb7 {[%emt 0:00:30]} (38... Bh4 $11 39. Qe3 Qxe3 40. Rxe3 Ba4) 39. Bxg6 $16 {[%emt 0:00:30]} fxg6 {[%emt 0:00:03]} 40. h4 {[%emt 0:00:13]} Bxh4 {[%emt 0:00:57]} (40... Ba4 $142) 41. Qxh4 {[%emt 0:08:23]} ({Reject} 41. Qxg6 $6 Qf7 42. Qxf7+ Kxf7 $11) 41... gxh5 {[%emt 0:07:19] [#]} 42. Rxe5 {[%emt 0:06:13]} dxe5 $14 {[%emt 0:15:57]} 43. Rxd8+ {[%emt 0:00:06]} Rxd8 {[%emt 0:00:08]} 44. Qxd8+ $16 {[%emt 0:00:03][%mdl 4096] Endgame KQB-KQB} Kh7 {[%emt 0:00:25]} 45. Qd3+ {[%emt 0:01:39]} e4 $1 {[%emt 0:00:58]} 46. Qd4 {[%emt 0:01:17]} (46. Qe2 $5 {[%cal Re2h5]}) 46... h4 {[%emt 0:04:48]} 47. Qe5 {[%emt 0:00:39]} Qd7 {[%emt 0:00:04]} 48. Bd4 {[%emt 0:00:33][%cal Ob4b5]} (48. b5 $5 axb5 49. cxb5 Bxb5 50. Qxe4+ Kg8 51. Qxh4 $14) 48... e3 {[%emt 0:01:08] And now ...Qg4 would win. The position is equal.} 49. Qxe3 {[%emt 0:02:38]} Qg4 {[%emt 0:00:16][%csl Gc6][%cal Rg4g2]} 50. f3 {[%emt 0:06:39]} Bxf3 {[%emt 0:00:41]} 51. Qxf3 {[%emt 0:00:33]} Qxd4+ $11 {[%emt 0:00:03] KQ-KQ} 52. Kh2 {[%emt 0:00:07] Black must now prevent Qf5+.} Qxc4 {[%emt 0:00:13]} 53. Qf5+ {[%emt 0:00:10]} Kg8 {[%emt 0:00:26]} 54. Kh3 {[%emt 0:02:43]} Qc6 {[%emt 0:04:26]} 55. Qg4 {[%emt 0:02:48]} Qc3+ {[%emt 0:00:38]} 56. Kxh4 {[%emt 0:00:29]} Qxa3 {[%emt 0:00:29]} 57. Qe6+ {[%emt 0:00:13]} Kf8 {[%emt 0:00:24]} 58. Qf5+ {[%emt 0:00:18]} Ke7 {[%emt 0:00:14]} 59. Qe5+ {[%emt 0:00:04]} Kf7 {[%emt 0:00:18]} 60. Qf5+ {[%emt 0:00:06]} Ke7 {[%emt 0:00:10] Weighted Error Value: White=0.19 (very precise) /Black=0.17 (very precise)} 1/2-1/2

[Event "44th Chess Olympiad Open 2022"]
[Site "Chennai"]
[Date "2022.08.05"]
[Round "7.29"]
[White "Ziska, Helgi Dam"]
[Black "Peralta, Fernando"]
[Result "1/2-1/2"]
[ECO "A13"]
[WhiteElo "2549"]
[BlackElo "2591"]
[Annotator "ChessBase"]
[PlyCount "60"]
[EventDate "2022.07.29"]
[EventType "team-tourn"]
[EventCountry "IND"]
[SourceTitle "playchess.com"]
[Source "ChessBase"]
[SourceQuality "1"]
[WhiteTeam "Faroe Islands"]
[BlackTeam "Argentina"]
[WhiteTeamCountry "FAI"]
[BlackTeamCountry "ARG"]
[TimeControl "40/5400+30:1800+30"]

1. c4 {[%emt 0:00:11]} e6 {[%emt 0:00:52]} 2. g3 {[%emt 0:00:36]} d5 {[%emt 0:00:32]} 3. Bg2 {[%emt 0:00:35]} d4 {[%emt 0:00:17]} 4. Nf3 {[%emt 0:02:01]} Nc6 {[%emt 0:00:21]} 5. O-O {[%emt 0:05:42]} Bc5 {[%emt 0:00:09]} 6. d3 {[%emt 0:04:54]} Nf6 {[%emt 0:05:44]} 7. e4 {[%emt 0:00:03]} e5 {[%emt 0:09:05]} 8. Nh4 {[%emt 0:09:38]} O-O {[%emt 0:08:05]} 9. h3 {[%emt 0:02:38]} Re8 {[%emt 0:00:00]} 10. Na3 {[%emt 0:08:46]} g6 {[%emt 0:00:00]} 11. Nc2 {[%emt 0:01:25]} a5 {[%emt 0:05:05]} 12. Bg5 {[%emt 0:08:44]} Be7 {[%emt 0:04:10]} 13. f4 {[%emt 0:01:21]} Nd7 {[%emt 0:00:13]} 14. Bxe7 {[%emt 0:02:27]} Qxe7 {[%emt 0:00:27]} 15. f5 {[%emt 0:02:13]} g5 {[%emt 0:11:21]} 16. f6 {[%emt 0:03:50]} Nxf6 {[%emt 0:00:11]} 17. Nf5 {[%emt 0:00:20]} Bxf5 {[%emt 0:00:23]} 18. Rxf5 {[%emt 0:00:19]} Nd7 {[%emt 0:04:37]} 19. h4 {[%emt 0:07:10]} gxh4 {[%emt 0:07:35]} 20. Qh5 {[%emt 0:06:56]} hxg3 {[%emt 0:13:01]} 21. Bh3 {[%emt 0:06:41]} Kh8 {[%emt 0:08:05]} 22. Raf1 {[%emt 0:00:00]} f6 {[%emt 0:00:39]} 23. Ne1 {[%emt 0:05:04]} Qg7 {[%emt 0:08:02]} 24. R5f3 {[%emt 0:07:44]} Nc5 {[%emt 0:06:33]} 25. Rxf6 {[%emt 0:00:00]} Rf8 {[%emt 0:01:08]} 26. Rf7 {[%emt 0:00:00]} Rxf7 {[%emt 0:00:16]} 27. Rxf7 {[%emt 0:00:00]} Qg6 {[%emt 0:00:04]} 28. Qf3 {[%emt 0:03:21]} Qh6 {[%emt 0:02:20]} 29. Bf5 {[%emt 0:06:03]} Qe3+ {[%emt 0:03:57]} 30. Kg2 {[%emt 0:00:27]} Qxf3+ {[%emt 0:00:39]} 1/2-1/2

[Event "44th Chess Olympiad Open 2022"]
[Site "Chennai"]
[Date "2022.08.05"]
[Round "7.29"]
[White "Rodgaard, John"]
[Black "Krysa, Leandro"]
[Result "0-1"]
[ECO "E03"]
[WhiteElo "2324"]
[BlackElo "2515"]
[Annotator "TA"]
[PlyCount "100"]
[EventDate "2022.07.29"]
[EventType "team-tourn"]
[EventCountry "IND"]
[SourceTitle "playchess.com"]
[Source "ChessBase"]
[SourceQuality "1"]
[WhiteTeam "Faroe Islands"]
[BlackTeam "Argentina"]
[WhiteTeamCountry "FAI"]
[BlackTeamCountry "ARG"]
[TimeControl "40/5400+30:1800+30"]

{[%evp 15,100,-6,19,14,20,21,27,24,18,9,0,0,0,-12,0,0,0,0,0,0,0,0,0,0,0,0,0,0,0,0,0,0,0,0,0,0,0,0,0,-7,0,0,0,0,0,-8,-1,-18,-13,-18,-12,-12,0,0,0,0,0,0,0,-8,-8,-8,-8,-8,-8,-8,-8,-8,-8,-8,-8,-8,-8,-8,-8,-8,-8,-29985,-29986,-29986,-29987,-29987,-29988,-29988,-29989,-29989,-29990]} 1. Nf3 {[%emt 0:00:14]} d5 {[%emt 0:00:19]} 2. d4 {[%emt 0:01:02]} Nf6 {[%emt 0:00:19]} 3. c4 {[%emt 0:00:47]} e6 {[%emt 0:00:12]} 4. g3 {[%emt 0:03:01]} dxc4 {[%emt 0:00:28]} 5. Qa4+ {[%emt 0:02:30]} Nbd7 {[%emt 0:01:04]} 6. Bg2 {[%emt 0:01:22]} a6 {[%emt 0:00:34]} 7. Qxc4 {[%emt 0:00:47]} b5 {[%emt 0:00:53]} 8. Qc6 {[%emt 0:01:45]} Rb8 {[%emt 0:00:36]} 9. Bf4 $1 {[%emt 0:00:42] E03: Open Catalan: 5 Qa4+ Nbd7 6 Qxc4.} Bb7 {[%emt 0:00:40]} 10. Qxc7 {[%emt 0:01:03]} Qxc7 {[%emt 0:00:43]} 11. Bxc7 {[%emt 0:00:09] White has an edge.} Bb4+ {[%emt 0:00:27]} 12. Nbd2 {[%emt 0:01:49]} Rc8 {[%emt 0:00:42]} 13. Bf4 {[%emt 0:00:32]} Rc2 $1 {[%emt 0:02:11]} 14. O-O {[%emt 0:06:42]} Nd5 {[%emt 0:08:32]} 15. Rfc1 {[%emt 0:23:31]} Rxb2 {[%emt 0:02:42]} 16. a3 {[%emt 0:14:50][%cal Ba2a3,Ba3a4][%mdl 32] [#]} Ba5 $146 {[%emt 0:17:55]} ({Predecessor:} 16... Nxf4 17. gxf4 Ba5 18. Rab1 Rxb1 19. Nxb1 Ke7 20. Ne5 Bxg2 21. Kxg2 Nxe5 22. fxe5 Kd7 23. a4 Rb8 24. axb5 axb5 25. Kf3 Bb4 26. Ke4 Ra8 27. Nc3 Bxc3 {½-½ (27) Happel,H (2217)-Van der Wiel,J (2458) Nordrheinwestfalen 2010}) 17. a4 $1 {[%emt 0:05:09]} Nxf4 {[%emt 0:23:30]} 18. gxf4 {[%emt 0:00:30][%cal Oa4b5]} Ke7 {[%emt 0:10:13]} (18... Rxd2 $2 19. Nxd2 Bxd2 20. Rc2 $18) 19. axb5 {[%emt 0:04:41]} Bxd2 {[%emt 0:03:00]} 20. Nxd2 {[%emt 0:01:30]} Bxg2 {[%emt 0:01:07]} (20... Rxd2 21. Bxb7 axb5 22. e3 $16) 21. Nc4 {[%emt 0:00:24]} Rxb5 {[%emt 0:02:04]} 22. Kxg2 {[%emt 0:00:13]} Rc8 {[%emt 0:01:23]} 23. Ne5 {[%emt 0:02:43]} ({Don't go for} 23. Rxa6 $2 Rb4 24. f5 Rcxc4 $19) 23... Rxc1 {[%emt 0:02:03]} 24. Rxc1 {[%emt 0:00:04] aiming for Rc7.} Nxe5 {[%emt 0:00:53]} 25. fxe5 $11 {[%emt 0:00:25][%mdl 4096] Endgame KR-KR} Kd7 {[%emt 0:07:20]} 26. Ra1 {[%emt 0:04:02]} a5 {[%emt 0:00:28]} 27. e4 {[%emt 0:01:07]} Kc6 {[%emt 0:03:00]} 28. Kf3 {[%emt 0:05:35]} f6 {[%emt 0:02:54]} 29. exf6 {[%emt 0:00:23]} gxf6 {[%emt 0:00:03]} 30. Kf4 {[%emt 0:05:30]} Kb6 {[%emt 0:03:58]} 31. Ke3 {[%emt 0:06:36]} Rb3+ {[%emt 0:00:29]} 32. Kf4 {[%emt 0:01:29]} Rb4 {[%emt 0:01:08]} 33. Rd1 {[%emt 0:01:23]} Rxd4 {[%emt 0:02:35]} 34. Rxd4 {[%emt 0:00:32] KR-KP} e5+ {[%emt 0:00:09]} 35. Ke3 {[%emt 0:00:06] Threatening mate with Rd6+.} exd4+ {[%emt 0:00:03]} 36. Kxd4 {[%emt 0:00:07] K3P-K3P} a4 {[%emt 0:00:53][%cal Ba5a4,Ba4a3][%mdl 32]} 37. f4 {[%emt 0:01:42]} a3 {[%emt 0:00:26]} (37... Kb5 $5 38. e5 a3 $11) 38. Kc3 {[%emt 0:00:04]} Kc5 {[%emt 0:00:15]} (38... a2 $5 39. Kb2 Kc5 40. Kxa2 h6 $11) 39. Kb3 {[%emt 0:03:40]} Kd4 {[%emt 0:00:18]} 40. e5 {[%emt 0:00:05]} fxe5 {[%emt 0:00:21]} 41. fxe5 {[%emt 0:30:38]} Kxe5 {[%emt 0:30:54]} 42. Kxa3 {[%emt 0:01:15] KP-KP} Kf4 {[%emt 0:02:53]} 43. Kb3 {[%emt 0:00:00]} Kg4 {[%emt 0:00:00]} 44. Kc3 {[%emt 0:00:00]} Kh3 {[%emt 0:00:00]} 45. Kd3 {[%emt 0:00:00]} Kxh2 {[%emt 0:00:00] ( -> ...h5)} 46. Ke4 $2 {[%emt 0:00:00][%mdl 8192] White does not recover from this.} (46. Ke2 $11) 46... Kg3 {[%emt 0:00:00] Black mates.} 47. Ke3 {[%emt 0:00:00] [#]} h5 $1 {[%emt 0:00:00][%cal Bh7h5,Bh5h4,Bh4h3][%mdl 32]} 48. Ke2 {[%emt 0:00:00]} Kg2 {[%emt 0:00:00]} 49. Ke3 {[%emt 0:00:00] [#]} h4 $1 {[%emt 0:00:00]} 50. Kf4 {[%emt 0:00:00]} h3 {[%emt 0:00:00] Weighted Error Value: White=0.19 (very precise) /Black=0.02 (flawless)} 0-1